[Event "Late-Titled-Tuesday-Blitz-March-05-2024"]
[Site "Chess.com"]
[Date "2024.03.05"]
[Round "2"]
[White "pr1105"]
[Black "Gennady_Kozlov"]
[Result "0-1"]
[WhiteElo "2399"]
[BlackElo "2677"]
[TimeControl "180+1"]
[EndTime "14:18:24 PST"]
[Termination "Gennady_Kozlov won by resignation"]

1. e4 {[%clk 0:03:00.9]} 1... e6 {[%clk 0:02:59.3]} 2. d4 {[%clk 0:03:00]} 2...
d5 {[%clk 0:02:59.8]} 3. Nc3 {[%clk 0:03:00.7]} 3... Nf6 {[%clk 0:02:59.9]} 4.
e5 {[%clk 0:02:59.4]} 4... Nfd7 {[%clk 0:03:00.3]} 5. f4 {[%clk 0:03:00.1]} 5...
c5 {[%clk 0:03:00.8]} 6. Nf3 {[%clk 0:03:01]} 6... Nc6 {[%clk 0:03:01.4]} 7. Be3
{[%clk 0:03:01.6]} 7... Qb6 {[%clk 0:03:01.8]} 8. Na4 {[%clk 0:02:55.3]} 8...
Qa5+ {[%clk 0:03:01.8]} 9. c3 {[%clk 0:02:56]} 9... cxd4 {[%clk 0:03:02.3]} 10.
b4 {[%clk 0:02:53.8]} 10... Nxb4 {[%clk 0:03:02.7]} 11. cxb4 {[%clk 0:02:54.7]}
11... Bxb4+ {[%clk 0:03:03.1]} 12. Bd2 {[%clk 0:02:55.3]} 12... Bxd2+ {[%clk
0:03:03.6]} 13. Nxd2 {[%clk 0:02:56.2]} 13... b5 {[%clk 0:02:55.2]} 14. Nb2
{[%clk 0:02:54.9]} 14... O-O {[%clk 0:02:54.2]} 15. Bd3 {[%clk 0:02:49.8]} 15...
Nb6 {[%clk 0:02:53.6]} 16. O-O {[%clk 0:02:44.8]} 16... Nc4 {[%clk 0:02:53.8]}
17. Bxh7+ {[%clk 0:02:15.7]} 17... Kxh7 {[%clk 0:02:53.8]} 18. Qh5+ {[%clk
0:02:15]} 18... Kg8 {[%clk 0:02:53.8]} 19. Nbxc4 {[%clk 0:02:15.5]} 19... bxc4
{[%clk 0:02:53.4]} 20. Nf3 {[%clk 0:02:16.2]} 20... g6 {[%clk 0:02:14.6]} 21.
Qh6 {[%clk 0:02:10.9]} 21... Qc7 {[%clk 0:02:14.5]} 22. f5 {[%clk 0:00:46.1]}
22... exf5 {[%clk 0:02:06]} 23. Ng5 {[%clk 0:00:33]} 23... f6 {[%clk 0:02:05.9]}
24. exf6 {[%clk 0:00:33.9]} 24... Rxf6 {[%clk 0:02:05.3]} 25. Rae1 {[%clk
0:00:34.4]} 25... Ba6 {[%clk 0:02:03.2]} 26. Rxf5 {[%clk 0:00:20.5]} 26... Qg7
{[%clk 0:01:12.6]} 27. Qxg7+ {[%clk 0:00:20.1]} 27... Kxg7 {[%clk 0:01:13.5]}
28. Re7+ {[%clk 0:00:20.5]} 28... Kf8 {[%clk 0:01:14.3]} 29. Rxf6+ {[%clk
0:00:14.3]} 29... Kxe7 {[%clk 0:01:14.4]} 30. Rxa6 {[%clk 0:00:15.2]} 30... Rf8
{[%clk 0:01:08.1]} 31. Nf3 {[%clk 0:00:14]} 31... d3 {[%clk 0:01:07.1]} 32. Kf2
{[%clk 0:00:13.4]} 32... c3 {[%clk 0:01:04.4]} 33. Rc6 {[%clk 0:00:11.1]} 33...
d4 {[%clk 0:01:03.6]} 34. Ke1 {[%clk 0:00:11.2]} 34... d2+ {[%clk 0:00:59.8]}
35. Kd1 {[%clk 0:00:11.5]} 35... Rb8 {[%clk 0:00:59.1]} 36. Nxd2 {[%clk
0:00:07.3]} 36... cxd2 {[%clk 0:00:59.2]} 37. Kxd2 {[%clk 0:00:08.2]} 37... Rb2+
{[%clk 0:00:59.5]} 38. Kd3 {[%clk 0:00:08]} 38... Rxg2 {[%clk 0:00:55.9]} 39. a4
{[%clk 0:00:07.1]} 39... g5 {[%clk 0:00:54.2]} 40. Rc7+ {[%clk 0:00:06.3]} 40...
Kd6 {[%clk 0:00:48.6]} 41. Rxa7 {[%clk 0:00:06.4]} 41... Rxh2 {[%clk 0:00:49.4]}
42. Rg7 {[%clk 0:00:06.5]} 42... Rh5 {[%clk 0:00:42.3]} 43. Kxd4 {[%clk
0:00:05.2]} 43... Ke6 {[%clk 0:00:40.9]} 44. a5 {[%clk 0:00:04.2]} 44... Kf6
{[%clk 0:00:40.9]} 45. Rg8 {[%clk 0:00:03.5]} 45... Kf7 {[%clk 0:00:41.2]} 46.
Rb8 {[%clk 0:00:01.9]} 46... g4 {[%clk 0:00:41]} 47. a6 {[%clk 0:00:02.5]} 47...
Ra5 {[%clk 0:00:40.9]} 48. Rb6 {[%clk 0:00:03.1]} 48... Ra3 {[%clk 0:00:38.5]}
49. Ke4 {[%clk 0:00:02.2]} 49... g3 {[%clk 0:00:38.8]} 50. Rb2 {[%clk
0:00:02.4]} 50... Kf6 {[%clk 0:00:36.6]} 51. Rg2 {[%clk 0:00:03]} 51... Kg5
{[%clk 0:00:36.6]} 52. a7 {[%clk 0:00:03.7]} 52... Kg4 {[%clk 0:00:36.8]} 53.
Kd4 {[%clk 0:00:01.5]} 53... Rxa7 {[%clk 0:00:36.7]} 54. Rc2 {[%clk 0:00:02]}
54... Rd7+ {[%clk 0:00:35]} 55. Ke3 {[%clk 0:00:02.7]} 55... Re7+ {[%clk
0:00:35.5]} 56. Kd2 {[%clk 0:00:02.2]} 56... Kf3 {[%clk 0:00:35.4]} 0-1

[Event "Late-Titled-Tuesday-Blitz-March-05-2024"]
[Site "Chess.com"]
[Date "2024.03.05"]
[Round "2"]
[White "ATM622"]
[Black "pirulillo"]
[Result "1-0"]
[WhiteElo "2499"]
[BlackElo "2239"]
[TimeControl "180+1"]
[EndTime "14:18:25 PST"]
[Termination "ATM622 won on time"]

1. d4 {[%clk 0:03:00.9]} 1... Nf6 {[%clk 0:02:58.9]} 2. c4 {[%clk 0:03:00.7]}
2... g6 {[%clk 0:02:58.8]} 3. g3 {[%clk 0:03:00.9]} 3... Bg7 {[%clk 0:02:58.9]}
4. Bg2 {[%clk 0:03:01.4]} 4... O-O {[%clk 0:02:59.2]} 5. Nf3 {[%clk 0:03:01.9]}
5... d6 {[%clk 0:02:59.4]} 6. O-O {[%clk 0:03:01.8]} 6... Bf5 {[%clk 0:02:59.3]}
7. Nc3 {[%clk 0:03:00]} 7... Ne4 {[%clk 0:02:59]} 8. Nh4 {[%clk 0:02:56.1]} 8...
Nxc3 {[%clk 0:02:58.3]} 9. bxc3 {[%clk 0:02:55.9]} 9... Bc8 {[%clk 0:02:59.2]}
10. Qb3 {[%clk 0:02:52.6]} 10... c6 {[%clk 0:02:54.2]} 11. Rd1 {[%clk
0:02:48.8]} 11... Qc7 {[%clk 0:02:38.4]} 12. Rb1 {[%clk 0:02:39.7]} 12... Nd7
{[%clk 0:02:32.2]} 13. e4 {[%clk 0:02:35.3]} 13... Rb8 {[%clk 0:02:25.2]} 14. a4
{[%clk 0:02:33.1]} 14... c5 {[%clk 0:02:13.9]} 15. Ba3 {[%clk 0:02:30.5]} 15...
b6 {[%clk 0:02:04.5]} 16. f4 {[%clk 0:02:19.8]} 16... Ba6 {[%clk 0:02:00.7]} 17.
Bf1 {[%clk 0:02:19.4]} 17... Rbc8 {[%clk 0:01:56.2]} 18. Rbc1 {[%clk 0:02:15.7]}
18... e5 {[%clk 0:01:46.5]} 19. dxe5 {[%clk 0:01:47.2]} 19... dxe5 {[%clk
0:01:45.2]} 20. Bh3 {[%clk 0:01:45.7]} 20... Rcd8 {[%clk 0:01:42.3]} 21. f5
{[%clk 0:01:43.8]} 21... Nf6 {[%clk 0:01:40.2]} 22. Bg2 {[%clk 0:01:35.4]} 22...
Bh6 {[%clk 0:01:39.2]} 23. Rb1 {[%clk 0:01:29.1]} 23... Bb7 {[%clk 0:01:29.1]}
24. Qc2 {[%clk 0:01:24.2]} 24... Ng4 {[%clk 0:01:21.1]} 25. Bc1 {[%clk
0:01:11.1]} 25... Rxd1+ {[%clk 0:01:00.6]} 26. Qxd1 {[%clk 0:01:06.7]} 26...
Bxc1 {[%clk 0:00:59.3]} 27. Qxc1 {[%clk 0:01:05]} 27... Kg7 {[%clk 0:00:47.9]}
28. Qg5 {[%clk 0:00:56.8]} 28... Nf6 {[%clk 0:00:40.8]} 29. fxg6 {[%clk
0:00:56.2]} 29... fxg6 {[%clk 0:00:40.1]} 30. Nf5+ {[%clk 0:00:33.7]} 30... Kh8
{[%clk 0:00:38.4]} 31. Qh6 {[%clk 0:00:28.2]} 31... Re8 {[%clk 0:00:23]} 32. Nh4
{[%clk 0:00:21.1]} 32... Qg7 {[%clk 0:00:21.4]} 33. Qe3 {[%clk 0:00:18.7]} 33...
Rd8 {[%clk 0:00:20.7]} 34. Rf1 {[%clk 0:00:18.4]} 34... h6 {[%clk 0:00:18.6]}
35. Bh3 {[%clk 0:00:16.8]} 35... Kh7 {[%clk 0:00:17.5]} 36. Bg2 {[%clk
0:00:10.5]} 36... Ng4 {[%clk 0:00:15]} 37. Qe2 {[%clk 0:00:09.8]} 37... Qd7
{[%clk 0:00:12.4]} 38. Bh3 {[%clk 0:00:09.3]} 38... h5 {[%clk 0:00:10.8]} 39.
Nf3 {[%clk 0:00:09.5]} 39... Qd3 {[%clk 0:00:09.2]} 40. Qxd3 {[%clk 0:00:06.2]}
40... Rxd3 {[%clk 0:00:10.1]} 41. Bxg4 {[%clk 0:00:06.7]} 41... hxg4 {[%clk
0:00:10]} 42. Nxe5 {[%clk 0:00:07.1]} 42... Rxc3 {[%clk 0:00:09.4]} 43. Rf7+
{[%clk 0:00:07.1]} 43... Kh6 {[%clk 0:00:10]} 44. Rxb7 {[%clk 0:00:05.8]} 44...
Re3 {[%clk 0:00:10.7]} 45. Nxg4+ {[%clk 0:00:05.6]} 1-0

[Event "Late-Titled-Tuesday-Blitz-March-05-2024"]
[Site "Chess.com"]
[Date "2024.03.05"]
[Round "2"]
[White "rynos0411"]
[Black "Chopper1905"]
[Result "0-1"]
[WhiteElo "2624"]
[BlackElo "2963"]
[TimeControl "180+1"]
[EndTime "14:18:28 PST"]
[Termination "Chopper1905 won by resignation"]

1. d4 {[%clk 0:03:00.9]} 1... Nf6 {[%clk 0:02:55.5]} 2. c4 {[%clk 0:03:01]} 2...
e6 {[%clk 0:02:55.8]} 3. Nf3 {[%clk 0:03:01.1]} 3... c5 {[%clk 0:02:56.1]} 4. d5
{[%clk 0:02:57.7]} 4... d6 {[%clk 0:02:56.3]} 5. Nc3 {[%clk 0:02:57.8]} 5...
exd5 {[%clk 0:02:56.7]} 6. cxd5 {[%clk 0:02:58.1]} 6... g6 {[%clk 0:02:57.1]} 7.
e4 {[%clk 0:02:55.1]} 7... a6 {[%clk 0:02:56.8]} 8. a4 {[%clk 0:02:54.1]} 8...
Bg4 {[%clk 0:02:57]} 9. Bf4 {[%clk 0:02:53]} 9... Nh5 {[%clk 0:02:47.9]} 10. Bd2
{[%clk 0:02:46.1]} 10... Nd7 {[%clk 0:02:34.1]} 11. Be2 {[%clk 0:02:44]} 11...
Bg7 {[%clk 0:02:33.3]} 12. h3 {[%clk 0:02:44]} 12... Bxf3 {[%clk 0:02:31.7]} 13.
Bxf3 {[%clk 0:02:44.9]} 13... Nhf6 {[%clk 0:02:29.7]} 14. O-O {[%clk 0:02:44]}
14... O-O {[%clk 0:02:29.5]} 15. a5 {[%clk 0:02:33.2]} 15... Rb8 {[%clk
0:02:28.2]} 16. Re1 {[%clk 0:02:30.1]} 16... Ne8 {[%clk 0:02:21.1]} 17. Be2
{[%clk 0:02:26.7]} 17... Nc7 {[%clk 0:02:20.5]} 18. f4 {[%clk 0:02:22.8]} 18...
b5 {[%clk 0:02:18.6]} 19. axb6 {[%clk 0:02:22.7]} 19... Nxb6 {[%clk 0:02:00.2]}
20. Qc2 {[%clk 0:02:11.2]} 20... Re8 {[%clk 0:01:52.1]} 21. Bf3 {[%clk
0:02:04.4]} 21... Qh4 {[%clk 0:01:36.3]} 22. Ne2 {[%clk 0:01:45]} 22... Nb5
{[%clk 0:01:11.5]} 23. Rxa6 {[%clk 0:01:44.1]} 23... Nd4 {[%clk 0:01:12]} 24.
Qd3 {[%clk 0:01:21.8]} 24... c4 {[%clk 0:01:06.1]} 25. Qb1 {[%clk 0:00:56.9]}
25... Nxf3+ {[%clk 0:00:54.1]} 26. gxf3 {[%clk 0:00:57.8]} 26... Qxh3 {[%clk
0:00:51.3]} 27. Rf1 {[%clk 0:00:35.8]} 27... Nxd5 {[%clk 0:00:47.8]} 28. Rf2
{[%clk 0:00:26.5]} 28... Rxb2 {[%clk 0:00:46.9]} 29. Qc1 {[%clk 0:00:26.8]}
29... c3 {[%clk 0:00:35.7]} 30. Nxc3 {[%clk 0:00:16.5]} 30... Bd4 {[%clk
0:00:17.9]} 31. Nd1 {[%clk 0:00:07.9]} 31... Rb3 {[%clk 0:00:05.6]} 32. Ra3
{[%clk 0:00:05.6]} 32... Rxa3 {[%clk 0:00:02.4]} 33. Qxa3 {[%clk 0:00:06.5]}
33... Qg3+ {[%clk 0:00:02.7]} 34. Kf1 {[%clk 0:00:06.8]} 34... Bxf2 {[%clk
0:00:03.4]} 35. Nxf2 {[%clk 0:00:07.7]} 35... Nxf4 {[%clk 0:00:03.8]} 36. Qa6
{[%clk 0:00:01.6]} 36... Qg2+ {[%clk 0:00:03.9]} 37. Ke1 {[%clk 0:00:02.5]}
37... Qg1+ {[%clk 0:00:04.3]} 38. Qf1 {[%clk 0:00:03.4]} 38... Qxf1+ {[%clk
0:00:04.6]} 39. Kxf1 {[%clk 0:00:04.1]} 39... Ne6 {[%clk 0:00:05.1]} 40. Bc3
{[%clk 0:00:04.4]} 40... h5 {[%clk 0:00:04.4]} 41. Bf6 {[%clk 0:00:04.9]} 41...
Rc8 {[%clk 0:00:04.5]} 42. Ke2 {[%clk 0:00:05.3]} 42... Rc2+ {[%clk 0:00:04.5]}
43. Ke3 {[%clk 0:00:05.9]} 43... Ra2 {[%clk 0:00:05.3]} 44. Nd3 {[%clk
0:00:06.3]} 44... Ra3 {[%clk 0:00:05.8]} 45. Ke2 {[%clk 0:00:06.9]} 45... g5
{[%clk 0:00:05.8]} 46. Nb2 {[%clk 0:00:04.4]} 46... Ra2 {[%clk 0:00:05.6]} 47.
Ke3 {[%clk 0:00:04.4]} 47... Ra3+ {[%clk 0:00:06.2]} 48. Kf2 {[%clk 0:00:04]}
48... g4 {[%clk 0:00:06.1]} 49. fxg4 {[%clk 0:00:03.9]} 49... hxg4 {[%clk
0:00:07]} 50. Nc4 {[%clk 0:00:04.7]} 50... Rf3+ {[%clk 0:00:07.7]} 51. Kg2
{[%clk 0:00:05.3]} 51... Rxf6 {[%clk 0:00:08.6]} 0-1

[Event "Late-Titled-Tuesday-Blitz-March-05-2024"]
[Site "Chess.com"]
[Date "2024.03.05"]
[Round "2"]
[White "reevecanada"]
[Black "igorkovalenko"]
[Result "0-1"]
[WhiteElo "2607"]
[BlackElo "2938"]
[TimeControl "180+1"]
[EndTime "14:18:28 PST"]
[Termination "igorkovalenko won by checkmate"]

1. e4 {[%clk 0:02:57.2]} 1... c5 {[%clk 0:02:59.9]} 2. Nf3 {[%clk 0:02:50.7]}
2... e6 {[%clk 0:03:00.2]} 3. b3 {[%clk 0:02:49.9]} 3... b6 {[%clk 0:02:59.4]}
4. d4 {[%clk 0:02:48.1]} 4... cxd4 {[%clk 0:03:00.3]} 5. Nxd4 {[%clk 0:02:47.7]}
5... Bb7 {[%clk 0:02:59.6]} 6. Nd2 {[%clk 0:02:46.5]} 6... Qf6 {[%clk
0:02:44.1]} 7. Bb2 {[%clk 0:02:37.3]} 7... Nc6 {[%clk 0:02:44.2]} 8. N2f3 {[%clk
0:02:31.8]} 8... Bb4+ {[%clk 0:02:43.4]} 9. c3 {[%clk 0:02:31.1]} 9... Nxd4
{[%clk 0:02:34.2]} 10. Qxd4 {[%clk 0:02:12.2]} 10... Qxd4 {[%clk 0:02:33.8]} 11.
Nxd4 {[%clk 0:02:08.9]} 11... Bc5 {[%clk 0:02:32.1]} 12. f3 {[%clk 0:02:09.2]}
12... Ne7 {[%clk 0:02:30.8]} 13. b4 {[%clk 0:02:09]} 13... Bxd4 {[%clk
0:02:31.1]} 14. cxd4 {[%clk 0:02:09.9]} 14... f5 {[%clk 0:02:27]} 15. Bd3 {[%clk
0:02:09.2]} 15... fxe4 {[%clk 0:02:24.8]} 16. fxe4 {[%clk 0:02:09.1]} 16... O-O
{[%clk 0:02:25.4]} 17. Ke2 {[%clk 0:02:05.7]} 17... d5 {[%clk 0:02:06.2]} 18. e5
{[%clk 0:01:57.2]} 18... Bc6 {[%clk 0:02:06.3]} 19. b5 {[%clk 0:01:56.6]} 19...
Be8 {[%clk 0:02:05.8]} 20. Ba3 {[%clk 0:01:56.3]} 20... Bh5+ {[%clk 0:02:06]}
21. Kd2 {[%clk 0:01:54]} 21... Rf7 {[%clk 0:01:46.3]} 22. Rhf1 {[%clk
0:01:51.1]} 22... Bg6 {[%clk 0:00:54.3]} 23. Rxf7 {[%clk 0:01:48.1]} 23... Kxf7
{[%clk 0:00:53.8]} 24. Rf1+ {[%clk 0:01:46.8]} 24... Ke8 {[%clk 0:00:54.1]} 25.
h4 {[%clk 0:01:44]} 25... Bxd3 {[%clk 0:00:50.5]} 26. Kxd3 {[%clk 0:01:42.1]}
26... a6 {[%clk 0:00:51]} 27. Bb4 {[%clk 0:01:32.9]} 27... axb5 {[%clk
0:00:50.9]} 28. a3 {[%clk 0:01:32.6]} 28... Rc8 {[%clk 0:00:48.2]} 29. g4 {[%clk
0:01:30.7]} 29... Rc4 {[%clk 0:00:40.1]} 30. Rb1 {[%clk 0:01:25.9]} 30... Nc6
{[%clk 0:00:39.7]} 31. Bc3 {[%clk 0:01:24.4]} 31... Na7 {[%clk 0:00:31]} 32. Bb4
{[%clk 0:01:21.1]} 32... Rc7 {[%clk 0:00:24.4]} 33. Bd6 {[%clk 0:01:15.9]} 33...
Rf7 {[%clk 0:00:24.2]} 34. Ke3 {[%clk 0:01:13]} 34... Kd8 {[%clk 0:00:22.9]} 35.
Bb8 {[%clk 0:01:11.7]} 35... Nc6 {[%clk 0:00:23]} 36. Bd6 {[%clk 0:01:10.8]}
36... Na7 {[%clk 0:00:19.8]} 37. Bb8 {[%clk 0:01:09]} 37... Kc8 {[%clk
0:00:20.1]} 38. Bd6 {[%clk 0:01:07.2]} 38... Kb7 {[%clk 0:00:20.4]} 39. Rb2
{[%clk 0:01:04.5]} 39... g6 {[%clk 0:00:20.7]} 40. Rb1 {[%clk 0:01:03.7]} 40...
Ka6 {[%clk 0:00:20.7]} 41. Rc1 {[%clk 0:01:03.6]} 41... Kb7 {[%clk 0:00:19.9]}
42. Rb1 {[%clk 0:01:02.7]} 42... Nc6 {[%clk 0:00:16.3]} 43. Rxb5 {[%clk
0:00:21.3]} 43... Na5 {[%clk 0:00:16.3]} 44. Rb1 {[%clk 0:00:17.3]} 44... Nc4+
{[%clk 0:00:16.4]} 45. Ke2 {[%clk 0:00:16.9]} 45... Rf4 {[%clk 0:00:16.1]} 46.
Bc5 {[%clk 0:00:16.7]} 46... Kc6 {[%clk 0:00:16.3]} 47. Be7 {[%clk 0:00:15.2]}
47... Rxd4 {[%clk 0:00:15.4]} 48. Kf3 {[%clk 0:00:15.3]} 48... Nxe5+ {[%clk
0:00:14.6]} 49. Ke3 {[%clk 0:00:15.8]} 49... Re4+ {[%clk 0:00:15]} 50. Kd2
{[%clk 0:00:15]} 50... Rxg4 {[%clk 0:00:15.7]} 51. Rf1 {[%clk 0:00:13.7]} 51...
Nc4+ {[%clk 0:00:16.1]} 52. Kc3 {[%clk 0:00:13.6]} 52... e5 {[%clk 0:00:15.9]}
53. Rf6+ {[%clk 0:00:12.9]} 53... Kb5 {[%clk 0:00:16.1]} 54. Bb4 {[%clk
0:00:12.2]} 54... Rg3+ {[%clk 0:00:16.1]} 55. Kc2 {[%clk 0:00:11.9]} 55... d4
{[%clk 0:00:16.5]} 56. Rf7 {[%clk 0:00:11.1]} 56... e4 {[%clk 0:00:16.7]} 57.
Rxh7 {[%clk 0:00:10.4]} 57... Rg2+ {[%clk 0:00:17.2]} 58. Kb3 {[%clk 0:00:08.3]}
58... Rb2# {[%clk 0:00:16.7]} 0-1

[Event "Late-Titled-Tuesday-Blitz-March-05-2024"]
[Site "Chess.com"]
[Date "2024.03.05"]
[Round "2"]
[White "sonson28291"]
[Black "thesupera12"]
[Result "1/2-1/2"]
[WhiteElo "2271"]
[BlackElo "2494"]
[TimeControl "180+1"]
[EndTime "14:18:28 PST"]
[Termination "Game drawn - insufficient material"]

1. e4 {[%clk 0:02:53.9]} 1... d5 {[%clk 0:03:00]} 2. exd5 {[%clk 0:02:53.7]}
2... Qxd5 {[%clk 0:03:00.9]} 3. d4 {[%clk 0:02:53.9]} 3... Qa5+ {[%clk
0:03:01.8]} 4. Bd2 {[%clk 0:02:53.8]} 4... Qb6 {[%clk 0:03:01.5]} 5. Bc3 {[%clk
0:02:54.7]} 5... Nf6 {[%clk 0:03:01.7]} 6. Nd2 {[%clk 0:02:54.8]} 6... Bg4
{[%clk 0:03:01.2]} 7. Be2 {[%clk 0:02:54.8]} 7... Bxe2 {[%clk 0:03:01.1]} 8.
Qxe2 {[%clk 0:02:55.1]} 8... Nc6 {[%clk 0:03:01.6]} 9. Ngf3 {[%clk 0:02:54.8]}
9... O-O-O {[%clk 0:03:01.6]} 10. Nc4 {[%clk 0:02:54.8]} 10... Qa6 {[%clk
0:02:57]} 11. O-O {[%clk 0:02:47.3]} 11... Nd5 {[%clk 0:02:55]} 12. Rfe1 {[%clk
0:02:42.7]} 12... e6 {[%clk 0:02:38.2]} 13. Ng5 {[%clk 0:02:42.1]} 13... Rd7
{[%clk 0:02:35.6]} 14. a3 {[%clk 0:02:19.8]} 14... h6 {[%clk 0:02:33.7]} 15. Ne4
{[%clk 0:02:18.7]} 15... Nf4 {[%clk 0:02:32.2]} 16. Qf1 {[%clk 0:02:10.7]} 16...
Nxd4 {[%clk 0:02:32]} 17. Bxd4 {[%clk 0:02:05.9]} 17... Rxd4 {[%clk 0:02:32.9]}
18. b3 {[%clk 0:02:05.3]} 18... Qc6 {[%clk 0:02:24.6]} 19. Ne5 {[%clk
0:01:52.3]} 19... Qe8 {[%clk 0:02:03.7]} 20. g3 {[%clk 0:01:40.4]} 20... f6
{[%clk 0:01:59.7]} 21. Nf3 {[%clk 0:01:29.2]} 21... Rxe4 {[%clk 0:01:48.5]} 22.
Rxe4 {[%clk 0:01:28.7]} 22... Nd5 {[%clk 0:01:46]} 23. Qe1 {[%clk 0:01:24.6]}
23... e5 {[%clk 0:01:44.6]} 24. c4 {[%clk 0:01:24.7]} 24... Nb6 {[%clk
0:01:42.8]} 25. b4 {[%clk 0:01:17.3]} 25... Qc6 {[%clk 0:01:42.5]} 26. Rc1
{[%clk 0:01:07.8]} 26... h5 {[%clk 0:01:26.7]} 27. h4 {[%clk 0:01:02.3]} 27...
g5 {[%clk 0:01:25.4]} 28. hxg5 {[%clk 0:01:01.4]} 28... fxg5 {[%clk 0:01:23.2]}
29. Nxe5 {[%clk 0:00:56.4]} 29... Qf6 {[%clk 0:01:18.9]} 30. Qd2 {[%clk
0:00:47.7]} 30... Bd6 {[%clk 0:01:15.9]} 31. c5 {[%clk 0:00:41]} 31... Bxe5
{[%clk 0:01:16]} 32. cxb6 {[%clk 0:00:41]} 32... axb6 {[%clk 0:01:16.9]} 33.
Rce1 {[%clk 0:00:37.3]} 33... Bd6 {[%clk 0:01:00.9]} 34. Re8+ {[%clk 0:00:37]}
34... Rxe8 {[%clk 0:01:00.1]} 35. Rxe8+ {[%clk 0:00:36.8]} 35... Kd7 {[%clk
0:01:01]} 36. Qe3 {[%clk 0:00:34]} 36... h4 {[%clk 0:00:57.5]} 37. gxh4 {[%clk
0:00:28.2]} 37... gxh4 {[%clk 0:00:58.4]} 38. Re4 {[%clk 0:00:26.5]} 38... Qg7+
{[%clk 0:00:49.9]} 39. Kh1 {[%clk 0:00:22.4]} 39... Qa1+ {[%clk 0:00:48.7]} 40.
Kg2 {[%clk 0:00:22.4]} 40... Qg7+ {[%clk 0:00:43.4]} 41. Kh3 {[%clk 0:00:22.3]}
41... Qg1 {[%clk 0:00:38.6]} 42. Rxh4 {[%clk 0:00:19.8]} 42... Qh2+ {[%clk
0:00:36.1]} 43. Kg4 {[%clk 0:00:20.1]} 43... Qg2+ {[%clk 0:00:36.4]} 44. Kh5
{[%clk 0:00:19.6]} 44... Qg7 {[%clk 0:00:28.3]} 45. Qh6 {[%clk 0:00:17.2]} 45...
Qe5+ {[%clk 0:00:25.6]} 46. Qg5 {[%clk 0:00:17.6]} 46... Qxg5+ {[%clk
0:00:21.7]} 47. Kxg5 {[%clk 0:00:17.8]} 47... Be7+ {[%clk 0:00:22.6]} 48. Kg4
{[%clk 0:00:17.8]} 48... Bxh4 {[%clk 0:00:23.5]} 49. Kxh4 {[%clk 0:00:18.4]}
49... c5 {[%clk 0:00:21.9]} 50. bxc5 {[%clk 0:00:14.1]} 50... bxc5 {[%clk
0:00:22.8]} 51. Kg4 {[%clk 0:00:14.5]} 51... b5 {[%clk 0:00:22.9]} 52. Kf4
{[%clk 0:00:15.1]} 52... b4 {[%clk 0:00:10.8]} 53. axb4 {[%clk 0:00:13.7]} 53...
cxb4 {[%clk 0:00:11.7]} 54. Ke4 {[%clk 0:00:14.3]} 54... Ke6 {[%clk 0:00:11.8]}
55. Kd4 {[%clk 0:00:14.8]} 55... Kf5 {[%clk 0:00:12.7]} 56. Kc4 {[%clk
0:00:15.1]} 56... Kf4 {[%clk 0:00:13.6]} 57. Kxb4 {[%clk 0:00:15.8]} 57... Kf3
{[%clk 0:00:14.5]} 58. Kc3 {[%clk 0:00:16.4]} 58... Kxf2 {[%clk 0:00:15.4]}
1/2-1/2

[Event "Late-Titled-Tuesday-Blitz-March-05-2024"]
[Site "Chess.com"]
[Date "2024.03.05"]
[Round "2"]
[White "yuriydovzik"]
[Black "Onthequiet"]
[Result "0-1"]
[WhiteElo "2077"]
[BlackElo "2447"]
[TimeControl "180+1"]
[EndTime "14:18:29 PST"]
[Termination "Onthequiet won on time"]

1. b3 {[%clk 0:03:00.1]} 1... d5 {[%clk 0:02:58.4]} 2. Bb2 {[%clk 0:02:58.3]}
2... Bg4 {[%clk 0:02:58.5]} 3. h3 {[%clk 0:02:51.8]} 3... Bh5 {[%clk 0:02:58.1]}
4. g4 {[%clk 0:02:49.1]} 4... Bg6 {[%clk 0:02:57.6]} 5. Bg2 {[%clk 0:02:47.4]}
5... c6 {[%clk 0:02:56.1]} 6. f4 {[%clk 0:02:41.3]} 6... e6 {[%clk 0:02:55.2]}
7. Nf3 {[%clk 0:02:39.6]} 7... Nd7 {[%clk 0:02:52.2]} 8. O-O {[%clk 0:02:32.2]}
8... h5 {[%clk 0:02:49.7]} 9. g5 {[%clk 0:02:20.8]} 9... Ne7 {[%clk 0:02:44.4]}
10. e3 {[%clk 0:02:03.8]} 10... Nf5 {[%clk 0:02:41.5]} 11. Nc3 {[%clk
0:01:56.5]} 11... f6 {[%clk 0:02:26.4]} 12. h4 {[%clk 0:01:49.9]} 12... Bc5
{[%clk 0:02:13.6]} 13. Ne2 {[%clk 0:01:42.1]} 13... Bxe3+ {[%clk 0:01:39.4]} 14.
dxe3 {[%clk 0:01:37.9]} 14... Nxe3 {[%clk 0:01:40.3]} 15. Qd2 {[%clk 0:01:33.9]}
15... Nxf1 {[%clk 0:01:37.9]} 16. Rxf1 {[%clk 0:01:29.4]} 16... Qc7 {[%clk
0:01:27.7]} 17. Nfd4 {[%clk 0:01:27]} 17... Bf7 {[%clk 0:01:01.5]} 18. g6 {[%clk
0:01:20.6]} 18... Bg8 {[%clk 0:00:57.1]} 19. Qe3 {[%clk 0:01:11.9]} 19... Nf8
{[%clk 0:00:48.5]} 20. Bh3 {[%clk 0:01:07.8]} 20... e5 {[%clk 0:00:30.1]} 21.
fxe5 {[%clk 0:00:51.9]} 21... Qxe5 {[%clk 0:00:31]} 22. Qxe5+ {[%clk 0:00:47.7]}
22... fxe5 {[%clk 0:00:30.5]} 23. Nf5 {[%clk 0:00:45]} 23... Nxg6 {[%clk
0:00:27.3]} 24. Nxg7+ {[%clk 0:00:43.2]} 24... Kd8 {[%clk 0:00:26.4]} 25. Bf5
{[%clk 0:00:29.5]} 25... Bh7 {[%clk 0:00:23.9]} 26. Ne6+ {[%clk 0:00:24.2]}
26... Ke7 {[%clk 0:00:20.5]} 27. Ng5 {[%clk 0:00:23.8]} 27... Raf8 {[%clk
0:00:09.8]} 28. Nxh7 {[%clk 0:00:19.8]} 28... Rxf5 {[%clk 0:00:09.9]} 29. Rxf5
{[%clk 0:00:17.6]} 29... Rxh7 {[%clk 0:00:09.6]} 30. Rg5 {[%clk 0:00:17.2]}
30... Nxh4 {[%clk 0:00:09.5]} 31. Kf2 {[%clk 0:00:14.1]} 31... e4 {[%clk
0:00:08.5]} 32. Nf4 {[%clk 0:00:12.4]} 32... Nf3 {[%clk 0:00:07.4]} 33. Rg3
{[%clk 0:00:10.4]} 33... h4 {[%clk 0:00:07.2]} 34. Rxf3 {[%clk 0:00:10.3]} 34...
exf3 {[%clk 0:00:08.1]} 35. Kxf3 {[%clk 0:00:10.3]} 35... h3 {[%clk 0:00:07.4]}
36. Ne2 {[%clk 0:00:04.7]} 36... h2 {[%clk 0:00:08.3]} 37. Ng3 {[%clk
0:00:04.8]} 37... h1=Q+ {[%clk 0:00:07.5]} 38. Nxh1 {[%clk 0:00:04.5]} 38...
Rxh1 {[%clk 0:00:08.4]} 39. Bd4 {[%clk 0:00:04.1]} 39... Rb1 {[%clk 0:00:07.8]}
40. a4 {[%clk 0:00:02.9]} 40... a6 {[%clk 0:00:07.6]} 41. Ke3 {[%clk 0:00:03.2]}
41... Ke6 {[%clk 0:00:07.9]} 42. Kd3 {[%clk 0:00:03.4]} 42... Rf1 {[%clk
0:00:08.4]} 43. Bb6 {[%clk 0:00:03.1]} 43... Rf7 {[%clk 0:00:09.3]} 44. Kc3
{[%clk 0:00:02.5]} 44... Kd6 {[%clk 0:00:08.8]} 45. a5 {[%clk 0:00:03.1]} 45...
c5 {[%clk 0:00:08.9]} 46. b4 {[%clk 0:00:02.1]} 46... c4 {[%clk 0:00:07.2]} 47.
Kd4 {[%clk 0:00:01.8]} 47... Kc6 {[%clk 0:00:07.1]} 0-1